[Event "*** Titled Tuesday 3|2 Blitz"]
[Site "Chess.com"]
[Date "2015.06.02"]
[Round "7"]
[White "Konavets"]
[Black "ChadaevNikolay"]
[Result "1-0"]
[WhiteElo "2470"]
[BlackElo "2593"]
[TimeControl "180+2"]
[EndTime "12:28:50 PDT"]
[Termination "Konavets won by resignation"]

1. e4 {[%clk 0:03:01.9]} 1... c5 {[%clk 0:02:59.1]} 2. Nf3 {[%clk 0:03:01.6]}
2... g6 {[%clk 0:02:59.7]} 3. d4 {[%clk 0:03:01.8]} 3... Bg7 {[%clk 0:02:59.9]}
4. dxc5 {[%clk 0:03:02.3]} 4... Qa5+ {[%clk 0:03:00.5]} 5. c3 {[%clk 0:03:03.7]}
5... Qxc5 {[%clk 0:03:01.3]} 6. Na3 {[%clk 0:03:05.2]} 6... Qa5 {[%clk
0:02:52.4]} 7. Nc4 {[%clk 0:03:00.9]} 7... Qc7 {[%clk 0:02:52.4]} 8. e5 {[%clk
0:02:56.2]} 8... b5 {[%clk 0:02:39.2]} 9. Ne3 {[%clk 0:02:54.4]} 9... Nc6 {[%clk
0:02:40.1]} 10. Nd5 {[%clk 0:02:53.2]} 10... Qb8 {[%clk 0:02:33.2]} 11. Bxb5
{[%clk 0:01:58.2]} 11... Nxe5 {[%clk 0:02:31.2]} 12. O-O {[%clk 0:01:57.8]}
12... e6 {[%clk 0:02:22.7]} 13. Re1 {[%clk 0:01:10.8]} 13... Bb7 {[%clk
0:01:23.2]} 14. Bf4 {[%clk 0:01:11.6]} 14... Bxd5 {[%clk 0:01:04.7]} 15. Bxd7+
{[%clk 0:01:12.5]} 15... Kxd7 {[%clk 0:00:53]} 16. Nxe5+ {[%clk 0:01:13.1]}
16... Ke8 {[%clk 0:00:53.7]} 17. Qxd5 {[%clk 0:00:52.2]} 17... exd5 {[%clk
0:00:54.1]} 18. Nc6+ {[%clk 0:00:52.3]} 18... Kf8 {[%clk 0:00:46]} 19. Nxb8
{[%clk 0:00:52.8]} 19... Nf6 {[%clk 0:00:45.6]} 20. Rad1 {[%clk 0:00:50.6]}
20... h6 {[%clk 0:00:40.6]} 21. c4 {[%clk 0:00:51.4]} 21... g5 {[%clk
0:00:32.5]} 22. Bd6+ {[%clk 0:00:46.4]} 22... Kg8 {[%clk 0:00:33.2]} 23. cxd5
{[%clk 0:00:47.9]} 23... Kh7 {[%clk 0:00:33.7]} 24. Nc6 {[%clk 0:00:48]} 24...
Rhc8 {[%clk 0:00:33.6]} 25. Re7 {[%clk 0:00:45.7]} 25... Nxd5 {[%clk 0:00:28.8]}
26. Rxa7 {[%clk 0:00:22.3]} 26... Rxa7 {[%clk 0:00:26.6]} 27. Nxa7 {[%clk
0:00:23.2]} 27... Rc2 {[%clk 0:00:28.1]} 28. h4 {[%clk 0:00:20.2]} 28... Nb6
{[%clk 0:00:27]} 29. b3 {[%clk 0:00:17.9]} 29... Rxa2 {[%clk 0:00:27.1]} 30. Nb5
{[%clk 0:00:18.3]} 30... Rb2 {[%clk 0:00:27.9]} 31. Rd3 {[%clk 0:00:18.1]} 31...
Nc8 {[%clk 0:00:28.7]} 32. Bc5 {[%clk 0:00:18.9]} 32... Be5 {[%clk 0:00:23.7]}
33. g3 {[%clk 0:00:17]} 33... gxh4 {[%clk 0:00:24.8]} 34. gxh4 {[%clk
0:00:18.6]} 34... Rc2 {[%clk 0:00:23.9]} 35. b4 {[%clk 0:00:19.4]} 35... Bf6
{[%clk 0:00:22.1]} 36. Rd7 {[%clk 0:00:17.6]} 36... Kg6 {[%clk 0:00:17.6]} 37.
Rc7 {[%clk 0:00:17.6]} 37... Ne7 {[%clk 0:00:18.5]} 38. Rxe7 {[%clk 0:00:17.8]}
38... Bxe7 {[%clk 0:00:18.6]} 39. Bxe7 {[%clk 0:00:18.5]} 39... Kf5 {[%clk
0:00:19.5]} 40. Kg2 {[%clk 0:00:19.1]} 40... Ke6 {[%clk 0:00:19.6]} 41. Nd4+
{[%clk 0:00:20.2]} 41... Kxe7 {[%clk 0:00:20.5]} 42. Nxc2 {[%clk 0:00:21.6]} 1-0

[Event "*** Titled Tuesday 3|2 Blitz"]
[Site "Chess.com"]
[Date "2015.06.02"]
[Round "7"]
[White "Gevorg_Harutjunyan"]
[Black "Keaton87"]
[Result "1-0"]
[WhiteElo "2535"]
[BlackElo "2397"]
[TimeControl "180+2"]
[EndTime "12:29:07 PDT"]
[Termination "Gevorg_Harutjunyan won by checkmate"]

1. e4 {[%clk 0:02:59.8]} 1... c5 {[%clk 0:03:00.8]} 2. Nc3 {[%clk 0:02:59.7]}
2... a6 {[%clk 0:03:01.7]} 3. f4 {[%clk 0:03:00.5]} 3... b5 {[%clk 0:03:02.3]}
4. Nf3 {[%clk 0:03:02.1]} 4... Bb7 {[%clk 0:03:02.1]} 5. d4 {[%clk 0:03:03.5]}
5... b4 {[%clk 0:02:57]} 6. Na4 {[%clk 0:03:03.8]} 6... cxd4 {[%clk 0:02:56.2]}
7. Qxd4 {[%clk 0:03:05.7]} 7... Nc6 {[%clk 0:02:55.7]} 8. Qb6 {[%clk 0:03:05.9]}
8... Qxb6 {[%clk 0:02:50.8]} 9. Nxb6 {[%clk 0:03:07.8]} 9... Rd8 {[%clk
0:02:51.8]} 10. Be3 {[%clk 0:03:08.9]} 10... d6 {[%clk 0:02:44.5]} 11. O-O-O
{[%clk 0:03:06.4]} 11... Nf6 {[%clk 0:02:45.4]} 12. Bd3 {[%clk 0:03:00.3]} 12...
Nd7 {[%clk 0:02:46.1]} 13. Nd5 {[%clk 0:02:59.1]} 13... Rc8 {[%clk 0:02:46.6]}
14. Rhe1 {[%clk 0:02:49.5]} 14... e6 {[%clk 0:02:47.3]} 15. Nb6 {[%clk
0:02:45.2]} 15... Nxb6 {[%clk 0:02:48.5]} 16. Bxb6 {[%clk 0:02:47.1]} 16... Be7
{[%clk 0:02:50.4]} 17. f5 {[%clk 0:02:44.8]} 17... Ne5 {[%clk 0:02:35.4]} 18.
Nd4 {[%clk 0:02:23]} 18... Nxd3+ {[%clk 0:02:29.8]} 19. Rxd3 {[%clk 0:02:23.7]}
19... Bg5+ {[%clk 0:02:27.7]} 20. Kb1 {[%clk 0:02:23.9]} 20... Ke7 {[%clk
0:02:28.8]} 21. Nf3 {[%clk 0:02:07.3]} 21... Bf6 {[%clk 0:02:26.7]} 22. e5
{[%clk 0:01:54.5]} 22... dxe5 {[%clk 0:02:24.2]} 23. Nxe5 {[%clk 0:01:55.1]}
23... Bd5 {[%clk 0:01:28.3]} 24. Ba5 {[%clk 0:01:32.4]} 24... Bxe5 {[%clk
0:01:22.3]} 25. Rxe5 {[%clk 0:01:32.6]} 25... Kd6 {[%clk 0:01:23.3]} 26. Re4
{[%clk 0:01:19.2]} 26... Kc6 {[%clk 0:00:47.9]} 27. Rxb4 {[%clk 0:01:16.8]}
27... Rb8 {[%clk 0:00:40]} 28. Rg4 {[%clk 0:01:11.3]} 28... g6 {[%clk
0:00:34.9]} 29. c4 {[%clk 0:01:09.3]} 29... Bxc4 {[%clk 0:00:27.5]} 30. Rxc4+
{[%clk 0:01:07.8]} 30... Kb5 {[%clk 0:00:29]} 31. b3 {[%clk 0:00:52.3]} 31...
Kxa5 {[%clk 0:00:30]} 32. fxe6 {[%clk 0:00:53.6]} 32... fxe6 {[%clk 0:00:30.6]}
33. Rd6 {[%clk 0:00:54.1]} 33... Rb6 {[%clk 0:00:11.7]} 34. Rd7 {[%clk
0:00:30.2]} 34... h5 {[%clk 0:00:09.9]} 35. Kb2 {[%clk 0:00:30.2]} 35... Rf8
{[%clk 0:00:09.4]} 36. Kc3 {[%clk 0:00:30.3]} 36... Rf5 {[%clk 0:00:05.3]} 37.
Rdd4 {[%clk 0:00:23.5]} 37... Rd5 {[%clk 0:00:03.6]} 38. Rxd5+ {[%clk 0:00:17]}
38... exd5 {[%clk 0:00:04.2]} 39. Rc5+ {[%clk 0:00:17.3]} 39... Rb5 {[%clk
0:00:05.5]} 40. Rc6 {[%clk 0:00:15.2]} 40... Rb6 {[%clk 0:00:05.4]} 41. b4+
{[%clk 0:00:11.8]} 41... Kb5 {[%clk 0:00:06.9]} 42. Rc5+ {[%clk 0:00:12.3]}
42... Ka4 {[%clk 0:00:07.2]} 43. Ra5# {[%clk 0:00:13.9]} 1-0

[Event "*** Titled Tuesday 3|2 Blitz"]
[Site "Chess.com"]
[Date "2015.06.02"]
[Round "7"]
[White "lexiel"]
[Black "Malev212"]
[Result "0-1"]
[WhiteElo "1945"]
[BlackElo "2224"]
[TimeControl "180+2"]
[EndTime "12:29:18 PDT"]
[Termination "Malev212 won by resignation"]

1. d4 {[%clk 0:03:01.9]} 1... d6 {[%clk 0:02:58]} 2. c4 {[%clk 0:03:00.7]} 2...
f5 {[%clk 0:02:56.5]} 3. e3 {[%clk 0:03:00.6]} 3... Nf6 {[%clk 0:02:56.7]} 4.
Nf3 {[%clk 0:03:01.5]} 4... g6 {[%clk 0:02:56.4]} 5. Be2 {[%clk 0:03:02.4]} 5...
Bg7 {[%clk 0:02:57.1]} 6. O-O {[%clk 0:03:03.3]} 6... O-O {[%clk 0:02:58.5]} 7.
Nc3 {[%clk 0:03:04.4]} 7... c6 {[%clk 0:02:48.5]} 8. b4 {[%clk 0:03:05.3]} 8...
a6 {[%clk 0:02:20.5]} 9. a4 {[%clk 0:03:04.6]} 9... Nbd7 {[%clk 0:02:17.4]} 10.
Bb2 {[%clk 0:03:05.4]} 10... e5 {[%clk 0:02:15.2]} 11. dxe5 {[%clk 0:03:03.3]}
11... dxe5 {[%clk 0:02:15.7]} 12. Qb3 {[%clk 0:03:04.2]} 12... Qe7 {[%clk
0:02:06.9]} 13. Ng5 {[%clk 0:02:57.2]} 13... Kh8 {[%clk 0:01:43]} 14. c5 {[%clk
0:02:53.3]} 14... a5 {[%clk 0:01:42.8]} 15. Ne6 {[%clk 0:02:51.8]} 15... axb4
{[%clk 0:01:42]} 16. Nxf8 {[%clk 0:02:47.8]} 16... bxc3 {[%clk 0:01:40.9]} 17.
Nxg6+ {[%clk 0:02:48]} 17... hxg6 {[%clk 0:01:41]} 18. Bxc3 {[%clk 0:02:49.1]}
18... Ne4 {[%clk 0:01:34.8]} 19. Bb4 {[%clk 0:02:41.2]} 19... Ndf6 {[%clk
0:01:33.6]} 20. Bc4 {[%clk 0:02:41.2]} 20... Ng4 {[%clk 0:01:25.1]} 21. f3
{[%clk 0:02:39.2]} 21... Nxh2 {[%clk 0:01:15.6]} 22. fxe4 {[%clk 0:02:31.4]}
22... Ng4 {[%clk 0:01:05.1]} 23. Rf3 {[%clk 0:02:30.8]} 23... Bh6 {[%clk
0:01:03.9]} 24. exf5 {[%clk 0:02:28.7]} 24... Bxf5 {[%clk 0:01:01.2]} 25. e4
{[%clk 0:02:28]} 25... Bxe4 {[%clk 0:01:00]} 26. Rh3 {[%clk 0:02:29]} 26... Kg7
{[%clk 0:00:56.1]} 27. Re1 {[%clk 0:02:29.5]} 27... Bf5 {[%clk 0:00:54.9]} 28.
Bd3 {[%clk 0:02:11.7]} 28... Rd8 {[%clk 0:00:50]} 29. Bxf5 {[%clk 0:02:12.2]}
29... gxf5 {[%clk 0:00:50.6]} 30. Qf3 {[%clk 0:02:09]} 30... Kg6 {[%clk
0:00:33.4]} 31. Rxh6+ {[%clk 0:01:55.3]} 31... Nxh6 {[%clk 0:00:31.2]} 32. Rf1
{[%clk 0:01:37.5]} 32... Rd4 {[%clk 0:00:30.2]} 33. Bc3 {[%clk 0:01:35.8]} 33...
Rf4 {[%clk 0:00:20.1]} 34. Qg3+ {[%clk 0:01:35.8]} 34... Ng4 {[%clk 0:00:20.3]}
35. Rxf4 {[%clk 0:01:30.8]} 35... exf4 {[%clk 0:00:21]} 36. Qxf4 {[%clk
0:01:32.1]} 36... Qxc5+ {[%clk 0:00:21.8]} 37. Qd4 {[%clk 0:01:32.3]} 37...
Qxd4+ {[%clk 0:00:20.5]} 38. Bxd4 {[%clk 0:01:34.2]} 38... f4 {[%clk 0:00:19.2]}
39. Kf1 {[%clk 0:01:34.3]} 39... Kf5 {[%clk 0:00:20]} 40. Ke2 {[%clk 0:01:35.6]}
40... Ke4 {[%clk 0:00:20.6]} 41. Bb6 {[%clk 0:01:36.7]} 41... Ne5 {[%clk
0:00:19.8]} 42. Bc7 {[%clk 0:01:33.7]} 42... Nc4 {[%clk 0:00:19.4]} 43. Bb8
{[%clk 0:01:30.6]} 43... Nb2 {[%clk 0:00:17.2]} 44. a5 {[%clk 0:01:29.3]} 44...
Nc4 {[%clk 0:00:17.9]} 45. Bc7 {[%clk 0:01:30.5]} 45... c5 {[%clk 0:00:18.2]}
46. Bd8 {[%clk 0:01:29.8]} 46... Ne3 {[%clk 0:00:16.8]} 47. Bb6 {[%clk
0:01:21.5]} 47... c4 {[%clk 0:00:07.4]} 48. g3 {[%clk 0:01:13.5]} 48... f3+
{[%clk 0:00:07]} 49. Kf2 {[%clk 0:01:13]} 49... Ng4+ {[%clk 0:00:06.7]} 50. Ke1
{[%clk 0:01:14.1]} 50... Kd3 {[%clk 0:00:07.3]} 0-1

[Event "*** Titled Tuesday 3|2 Blitz"]
[Site "Chess.com"]
[Date "2015.06.02"]
[Round "7"]
[White "only_defence"]
[Black "GMG"]
[Result "0-1"]
[WhiteElo "2113"]
[BlackElo "2448"]
[TimeControl "180+2"]
[EndTime "12:29:23 PDT"]
[Termination "GMG won by resignation"]

1. d4 {[%clk 0:03:01.9]} 1... Nf6 {[%clk 0:03:00.3]} 2. c4 {[%clk 0:02:55.5]}
2... c5 {[%clk 0:02:59.8]} 3. Nf3 {[%clk 0:02:55.9]} 3... cxd4 {[%clk
0:02:59.2]} 4. Nxd4 {[%clk 0:02:57.8]} 4... e6 {[%clk 0:02:57.9]} 5. g3 {[%clk
0:02:58]} 5... Bc5 {[%clk 0:02:53.2]} 6. Nb3 {[%clk 0:02:57.9]} 6... Be7 {[%clk
0:02:50.9]} 7. Bg2 {[%clk 0:02:58.3]} 7... Qc7 {[%clk 0:02:49.9]} 8. N1d2 {[%clk
0:02:34]} 8... d6 {[%clk 0:02:49.1]} 9. O-O {[%clk 0:02:34.6]} 9... O-O {[%clk
0:02:48.8]} 10. Nd4 {[%clk 0:02:35.3]} 10... a6 {[%clk 0:02:49.2]} 11. b3 {[%clk
0:02:35.8]} 11... Nbd7 {[%clk 0:02:50.3]} 12. Bb2 {[%clk 0:02:36.4]} 12... Re8
{[%clk 0:02:49]} 13. Nb1 {[%clk 0:02:37.3]} 13... Bf8 {[%clk 0:02:49.7]} 14. Nc3
{[%clk 0:02:37.9]} 14... Ne5 {[%clk 0:02:45.5]} 15. Rc1 {[%clk 0:02:38.2]} 15...
Bd7 {[%clk 0:02:45.6]} 16. e3 {[%clk 0:02:37.8]} 16... h5 {[%clk 0:02:45.1]} 17.
h3 {[%clk 0:02:38]} 17... Rad8 {[%clk 0:02:43.1]} 18. Qd2 {[%clk 0:02:37.1]}
18... Ng6 {[%clk 0:02:42.7]} 19. Rfd1 {[%clk 0:02:29.8]} 19... Qc8 {[%clk
0:02:43.2]} 20. Kh2 {[%clk 0:02:28.6]} 20... Qb8 {[%clk 0:02:33.6]} 21. a4
{[%clk 0:02:26.8]} 21... h4 {[%clk 0:02:32.8]} 22. Nde2 {[%clk 0:02:19.7]} 22...
hxg3+ {[%clk 0:02:31.8]} 23. Nxg3 {[%clk 0:02:19.9]} 23... Bc6 {[%clk
0:02:32.2]} 24. Qd4 {[%clk 0:02:11.8]} 24... Bxg2 {[%clk 0:02:28.5]} 25. Kxg2
{[%clk 0:02:13.7]} 25... Qc8 {[%clk 0:02:26.8]} 26. Nce4 {[%clk 0:02:02]} 26...
Be7 {[%clk 0:02:23.3]} 27. Qd3 {[%clk 0:01:59.7]} 27... Qc6 {[%clk 0:02:23]} 28.
Kh2 {[%clk 0:01:54]} 28... Nd7 {[%clk 0:02:12.5]} 29. Qd4 {[%clk 0:01:50.6]}
29... Nf6 {[%clk 0:02:08.7]} 30. Qd3 {[%clk 0:01:50.8]} 30... Kf8 {[%clk
0:01:29.9]} 31. Bxf6 {[%clk 0:01:46.6]} 31... Bxf6 {[%clk 0:01:22.5]} 32. Nxf6
{[%clk 0:01:40.8]} 32... gxf6 {[%clk 0:01:23.5]} 33. Qe4 {[%clk 0:01:38.6]}
33... f5 {[%clk 0:01:23]} 34. Qxc6 {[%clk 0:01:29.5]} 34... bxc6 {[%clk
0:01:24.9]} 35. Ne2 {[%clk 0:01:22.6]} 35... c5 {[%clk 0:01:24.9]} 36. f4 {[%clk
0:01:16]} 36... Ke7 {[%clk 0:01:17.2]} 37. Rg1 {[%clk 0:01:13.1]} 37... Rb8
{[%clk 0:01:16.6]} 38. Rc3 {[%clk 0:01:14]} 38... Rh8 {[%clk 0:01:12.5]} 39. Nc1
{[%clk 0:01:12.1]} 39... Nf8 {[%clk 0:01:13.2]} 40. Rd3 {[%clk 0:01:12.8]} 40...
Nd7 {[%clk 0:01:10.9]} 41. Rgd1 {[%clk 0:01:12]} 41... Rb6 {[%clk 0:01:12]} 42.
Rg1 {[%clk 0:01:09.8]} 42... Nf6 {[%clk 0:01:12.7]} 43. Rg3 {[%clk 0:01:08.4]}
43... Ne4 {[%clk 0:01:13.3]} 44. Rf3 {[%clk 0:01:05.3]} 44... Rbb8 {[%clk
0:01:11.6]} 45. Ne2 {[%clk 0:01:05.3]} 45... Rhg8 {[%clk 0:00:49.1]} 46. Ng3
{[%clk 0:00:59.1]} 46... Rg7 {[%clk 0:00:49.6]} 47. Nh5 {[%clk 0:00:55.2]} 47...
Rg6 {[%clk 0:00:50]} 48. Rf1 {[%clk 0:00:36.6]} 48... Rbg8 {[%clk 0:00:48.1]}
49. Rdd1 {[%clk 0:00:31.9]} 49... Rg2+ {[%clk 0:00:48]} 50. Kh1 {[%clk
0:00:32.8]} 50... Rb2 {[%clk 0:00:43.9]} 51. Rb1 {[%clk 0:00:32.2]} 51... Rxb1
{[%clk 0:00:38.6]} 52. Rxb1 {[%clk 0:00:34.1]} 52... Rh8 {[%clk 0:00:40.2]} 53.
Rg1 {[%clk 0:00:31]} 53... Rxh5 {[%clk 0:00:40.6]} 54. Kh2 {[%clk 0:00:32.9]}
54... Rh8 {[%clk 0:00:40]} 0-1

[Event "*** Titled Tuesday 3|2 Blitz"]
[Site "Chess.com"]
[Date "2015.06.02"]
[Round "7"]
[White "Vandros57"]
[Black "esr44"]
[Result "0-1"]
[WhiteElo "1800"]
[BlackElo "2013"]
[TimeControl "180+2"]
[EndTime "12:29:34 PDT"]
[Termination "esr44 won on time"]

1. e4 {[%clk 0:03:01.9]} 1... c5 {[%clk 0:03:00.7]} 2. Nc3 {[%clk 0:03:00.4]}
2... a6 {[%clk 0:03:01.1]} 3. g3 {[%clk 0:02:57.5]} 3... b5 {[%clk 0:03:00.2]}
4. Bg2 {[%clk 0:02:53.6]} 4... Bb7 {[%clk 0:03:01.7]} 5. d3 {[%clk 0:02:44]}
5... e6 {[%clk 0:03:02.6]} 6. a4 {[%clk 0:02:40.9]} 6... b4 {[%clk 0:03:01]} 7.
Nce2 {[%clk 0:02:40.7]} 7... Be7 {[%clk 0:02:38.3]} 8. f4 {[%clk 0:02:39.2]}
8... f5 {[%clk 0:02:34.8]} 9. Nh3 {[%clk 0:02:32.1]} 9... Nf6 {[%clk 0:02:32.4]}
10. Nf2 {[%clk 0:02:28.7]} 10... O-O {[%clk 0:02:26.5]} 11. O-O {[%clk
0:02:28.3]} 11... fxe4 {[%clk 0:02:14.4]} 12. Nxe4 {[%clk 0:02:27.5]} 12... d5
{[%clk 0:02:12.8]} 13. Nxf6+ {[%clk 0:02:21.9]} 13... Bxf6 {[%clk 0:02:12.9]}
14. c3 {[%clk 0:02:20.8]} 14... a5 {[%clk 0:01:43]} 15. Bd2 {[%clk 0:02:19.6]}
15... Qb6 {[%clk 0:01:38]} 16. Kh1 {[%clk 0:02:17.2]} 16... Nd7 {[%clk
0:01:24.8]} 17. Qc2 {[%clk 0:02:10.1]} 17... e5 {[%clk 0:00:50.5]} 18. h3 {[%clk
0:01:56.3]} 18... Rae8 {[%clk 0:00:46.9]} 19. Rae1 {[%clk 0:01:54.3]} 19... b3
{[%clk 0:00:40.1]} 20. Qd1 {[%clk 0:01:38]} 20... c4 {[%clk 0:00:25.8]} 21. dxc4
{[%clk 0:01:30.4]} 21... dxc4 {[%clk 0:00:26.5]} 22. Ng1 {[%clk 0:01:16.3]}
22... Bxg2+ {[%clk 0:00:20.8]} 23. Kxg2 {[%clk 0:01:15.9]} 23... Qc6+ {[%clk
0:00:21.6]} 24. Qf3 {[%clk 0:01:14]} 24... Qxa4 {[%clk 0:00:22.3]} 25. Qd5+
{[%clk 0:01:01.4]} 25... Kh8 {[%clk 0:00:19.6]} 26. Re4 {[%clk 0:00:48.8]} 26...
Nb6 {[%clk 0:00:18.8]} 27. Qb7 {[%clk 0:00:37.4]} 27... Qd7 {[%clk 0:00:14.6]}
28. Qxd7 {[%clk 0:00:36.5]} 28... Nxd7 {[%clk 0:00:15.3]} 29. Rxc4 {[%clk
0:00:36]} 29... exf4 {[%clk 0:00:14.1]} 30. Bxf4 {[%clk 0:00:34.3]} 30... Ne5
{[%clk 0:00:12.5]} 31. Bxe5 {[%clk 0:00:27.4]} 31... Bxe5 {[%clk 0:00:13.3]} 32.
Rxf8+ {[%clk 0:00:26.5]} 32... Rxf8 {[%clk 0:00:13.9]} 33. Nf3 {[%clk 0:00:26]}
33... Bf6 {[%clk 0:00:13.2]} 34. Ra4 {[%clk 0:00:22.9]} 34... Bd8 {[%clk
0:00:09.8]} 35. Nd4 {[%clk 0:00:18.2]} 35... h5 {[%clk 0:00:07.6]} 36. Nxb3
{[%clk 0:00:17.2]} 36... h4 {[%clk 0:00:09.1]} 37. g4 {[%clk 0:00:14.2]} 37...
Re8 {[%clk 0:00:09]} 38. Nd4 {[%clk 0:00:13.1]} 38... Re3 {[%clk 0:00:08.1]} 39.
Rc4 {[%clk 0:00:11.9]} 39... Rg3+ {[%clk 0:00:09]} 40. Kh2 {[%clk 0:00:11.8]}
40... Bf6 {[%clk 0:00:09.6]} 41. Rc8+ {[%clk 0:00:11.7]} 41... Kh7 {[%clk
0:00:10.6]} 42. Nf5 {[%clk 0:00:12.3]} 42... Rd3 {[%clk 0:00:08.9]} 43. Rb8
{[%clk 0:00:10.7]} 43... Be5+ {[%clk 0:00:08.9]} 44. Kg1 {[%clk 0:00:10.9]}
44... Bxb8 {[%clk 0:00:10]} 0-1

[Event "*** Titled Tuesday 3|2 Blitz"]
[Site "Chess.com"]
[Date "2015.06.02"]
[Round "7"]
[White "VSERGUEI"]
[Black "Cryptochess"]
[Result "1-0"]
[WhiteElo "2494"]
[BlackElo "2375"]
[TimeControl "180+2"]
[EndTime "12:29:35 PDT"]
[Termination "VSERGUEI won by resignation"]

1. d4 {[%clk 0:03:01.9]} 1... Nf6 {[%clk 0:03:00.8]} 2. c4 {[%clk 0:03:02.3]}
2... e6 {[%clk 0:03:02.1]} 3. Nc3 {[%clk 0:03:03.3]} 3... Bb4 {[%clk 0:03:03.5]}
4. f3 {[%clk 0:03:03.5]} 4... d5 {[%clk 0:03:00.2]} 5. a3 {[%clk 0:03:04]} 5...
Be7 {[%clk 0:03:00]} 6. e4 {[%clk 0:03:04.2]} 6... dxe4 {[%clk 0:03:00.8]} 7.
fxe4 {[%clk 0:03:06.1]} 7... e5 {[%clk 0:03:01.4]} 8. d5 {[%clk 0:03:07.4]} 8...
O-O {[%clk 0:03:02.1]} 9. Nf3 {[%clk 0:03:07.6]} 9... Bg4 {[%clk 0:03:03.1]} 10.
h3 {[%clk 0:03:08.1]} 10... Bxf3 {[%clk 0:03:04.2]} 11. Qxf3 {[%clk 0:03:09.2]}
11... Bc5 {[%clk 0:03:05.2]} 12. Bd3 {[%clk 0:03:09]} 12... Nbd7 {[%clk
0:03:05.5]} 13. Bd2 {[%clk 0:03:09.5]} 13... Bd4 {[%clk 0:03:06.6]} 14. O-O-O
{[%clk 0:03:09.9]} 14... a5 {[%clk 0:03:06.1]} 15. Kb1 {[%clk 0:03:10.4]} 15...
c6 {[%clk 0:02:48.3]} 16. Rc1 {[%clk 0:03:09.6]} 16... Nc5 {[%clk 0:02:48.3]}
17. Bc2 {[%clk 0:03:07.8]} 17... a4 {[%clk 0:02:38.5]} 18. Ka2 {[%clk
0:03:07.4]} 18... Qb6 {[%clk 0:02:30.9]} 19. Rb1 {[%clk 0:03:06.1]} 19... Qa6
{[%clk 0:02:22.1]} 20. Qe2 {[%clk 0:02:52.4]} 20... Nfd7 {[%clk 0:01:55.7]} 21.
Nd1 {[%clk 0:02:34]} 21... Nb3 {[%clk 0:01:40.1]} 22. Bb4 {[%clk 0:02:34.1]}
22... Ndc5 {[%clk 0:01:32.9]} 23. Rf1 {[%clk 0:02:21.9]} 23... Rab8 {[%clk
0:01:21.8]} 24. Rf3 {[%clk 0:02:21.2]} 24... b5 {[%clk 0:01:20.8]} 25. cxb5
{[%clk 0:02:20.5]} 25... Rxb5 {[%clk 0:01:21.2]} 26. Nc3 {[%clk 0:02:20]} 26...
Rxb4 {[%clk 0:00:58.1]} 27. axb4 {[%clk 0:02:12.4]} 27... Bxc3 {[%clk
0:00:49.3]} 28. Qxa6 {[%clk 0:02:08.7]} 28... Nxa6 {[%clk 0:00:51.2]} 29. bxc3
{[%clk 0:02:08.2]} 29... Nd2 {[%clk 0:00:52.1]} 30. dxc6 {[%clk 0:02:07.2]}
30... Nxb1 {[%clk 0:00:46.5]} 31. Kxb1 {[%clk 0:02:06.5]} 31... a3 {[%clk
0:00:39.6]} 32. Ka2 {[%clk 0:02:06.7]} 32... Rc8 {[%clk 0:00:40.5]} 33. b5
{[%clk 0:02:06.6]} 33... Nc5 {[%clk 0:00:40.3]} 34. c4 {[%clk 0:02:05]} 34...
Kf8 {[%clk 0:00:40.5]} 35. Rxa3 {[%clk 0:02:04.5]} 35... Ke7 {[%clk 0:00:40.8]}
36. Ra7+ {[%clk 0:02:04.4]} 36... Kd6 {[%clk 0:00:41.3]} 37. Rxf7 {[%clk
0:02:03.8]} 37... Ne6 {[%clk 0:00:42.8]} 38. Kb2 {[%clk 0:02:00.9]} 38... Kc5
{[%clk 0:00:43.3]} 39. Re7 {[%clk 0:01:59.2]} 39... Kd6 {[%clk 0:00:41.2]} 40.
Rd7+ {[%clk 0:01:59.4]} 40... Kc5 {[%clk 0:00:41.9]} 41. Rd5+ {[%clk 0:02:00.2]}
41... Kxc4 {[%clk 0:00:43.2]} 42. Bb3+ {[%clk 0:01:54.9]} 42... Kb4 {[%clk
0:00:43.3]} 43. Rxe5 {[%clk 0:01:51.1]} 43... Nc5 {[%clk 0:00:44.2]} 44. Be6
{[%clk 0:01:29.4]} 44... Rc7 {[%clk 0:00:15.5]} 45. Kc2 {[%clk 0:01:18.7]} 45...
Kxb5 {[%clk 0:00:15]} 46. Bd5 {[%clk 0:01:19.2]} 46... Na6 {[%clk 0:00:12.1]}
47. Kc3 {[%clk 0:01:08.4]} 47... Nc5 {[%clk 0:00:08.5]} 48. Kd4 {[%clk
0:01:06.4]} 48... Kb6 {[%clk 0:00:07]} 49. Re8 {[%clk 0:01:04.7]} 49... Na6
{[%clk 0:00:06.4]} 50. Ke5 {[%clk 0:01:00.1]} 50... Nb4 {[%clk 0:00:07.1]} 51.
Rb8+ {[%clk 0:00:55.4]} 51... Kc5 {[%clk 0:00:08.2]} 52. Rxb4 {[%clk 0:00:55]}
52... Re7+ {[%clk 0:00:09.2]} 53. Be6 {[%clk 0:00:54.6]} 53... Kxb4 {[%clk
0:00:05.8]} 54. Kd6 {[%clk 0:00:55.2]} 54... Re8 {[%clk 0:00:05.9]} 55. c7
{[%clk 0:00:55.3]} 55... Kc3 {[%clk 0:00:07]} 56. c8=Q+ {[%clk 0:00:55.4]} 1-0